Cogmind - Beta 17 @@@ ROGUE MODE // 2026.08.01 @ 20:46:38 Player: Grimrest Result: Destroyed self with Improved Grenade Launcher Performance ------------- Evolutions (1) 500 Regions Visited (3) 600 Robots Destroyed (46) 230 Value Destroyed (1023) 1023 Prototype IDs (2) 40 Alien Tech Used (0) 0 Bonus (11) 11 TOTAL SCORE: 2404 Bonus ------- High Alert Combat Kills 11 Cogmind --------- Core Integrity 0/400 Matter 78/300 Energy 100/100 System Corruption 0% Temperature Cool (0) Movement Core (100) Ox1 Location -9/Materials Parts ------- > --- POWER (2) -------- (None) > --- PROPULSION (3) --- (None) > --- UTILITY (2) ------ (None) > --- WEAPON (2) ------- Improved Grenade Launcher > --- INVENTORY (5) ---- Advanced Treads Armored Wheel Scrap Suit Peak State ------------ > --- POWER ------------ Improved Ion Engine > --- PROPULSION ------- Advanced Treads Advanced Treads Advanced Treads > --- UTILITY ---------- Small Storage Unit Seismic Detector > --- WEAPON ----------- Improved Grenade Launcher Improved Grenade Launcher > --- INVENTORY -------- Scrap Suit ECM Suite Light Armor Plating Spread Laser Shock Bomb Launcher Improved Grenade Launcher Mace [Rating: 21] Favorites ----------- Power Light Ion Engine Engine Light Ion Engine Propulsion Light Treads Treads Light Treads Wheel Wheel Flight Unit VTOL Module Utility Small Storage Unit Device Seismic Detector Storage Small Storage Unit Weapon Light Assault Rifle Energy Gun Spread Laser Energy Cannon Beam Cannon Ballistic Gun Light Assault Rifle Launcher Improved Grenade Launcher Special Weapon Mining Laser Impact Weapon Mace Build | -11 -10 -10 -9 ------- Run | Yrd Mat Min Mat Slots Evolved 2 | . . . 2 Power 1 | . . . 1 Propulsion 1 | . . . 1 Utility . | . . . . Weapon . | . . . . Parts Attached 30 | 7 6 4 13 Power 5 | 1 1 1 2 Engine 5 | 1 1 1 2 Core . | . . . . Reactor . | . . . . Propulsion 10 | 2 2 1 5 Treads 5 | 2 . . 3 Leg . | . . . . Wheel 1 | . . 1 . Hover . | . . . . Flight 4 | . 2 . 2 Utility 4 | 2 . 1 1 Device 2 | . . 1 1 Storage 2 | 2 . . . Processor . | . . . . Hackware . | . . . . Protection . | . . . . Artifact . | . . . . Weapon 11 | 2 3 1 5 Energy Gun 2 | . 1 . 1 Energy Cannon 1 | . 1 . . Ballistic Gun 2 | 2 . . . Ballistic Cannon . | . . . . Launcher 4 | . . . 4 Special Weapon 1 | . . 1 . Impact Weapon 1 | . 1 . . Slashing Weapon . | . . . . Piercing Weapon . | . . . . Special Melee Weapon . | . . . . Unidentified Prototypes . | . . . . Parts Lost 15 | . . 3 12 Power 4 | . . 1 3 Propulsion 5 | . . 1 4 Utility 3 | . . 1 2 Weapon 3 | . . . 3 Highest Loss Streak 9 | . . 2 9 To Critical Strikes . | . . . . Average Backups 6 | 1 6 7 5 Power . | . 1 . . Propulsion . | . . . . Utility 2 | . 1 3 2 Weapon 3 | . 3 3 3 Tool/Special . | . . . . Unused Backups 12 | 1 1 1 9 Power . | . . . . Propulsion 2 | . . . 2 Utility 3 | . . . 3 Weapon 7 | 1 1 1 4 Tool/Special . | . . . . Average Slot Usage (%) 82 | . 90 73 78 Engine 12 | . 14 8 12 Treads 14 | . 18 1 19 Wheel 3 | . . 11 1 Flight 1 | . . . 4 Device 3 | . . 2 10 Storage 21 | . 28 20 10 Energy Gun 2 | . . . 6 Energy Cannon 4 | . 6 6 . Ballistic Gun 7 | . 15 . . Launcher 2 | . . . 9 Special Weapon 2 | . . 8 1 Impact Weapon 6 | . 6 14 1 Peak Build Rating 21 | 7 7 8 21 Average Rating 9 | 4 6 6 15 On Entrance 5 | . 7 7 8 Avg Prop Armor Cover (%) 3 | . 3 . . Naked Turns . | . . . . Heaviest Build 25 | 15 20 20 25 Greatest Support 66 | 40 40 20 66 Greatest Overweight (x) 6 | . 5 6 5 Average Overweight (x) . | . . . . Largest Inventory Capacity 8 | 8 8 8 8 Average Capacity 7 | 7 8 8 7 Most Carried 8 | 3 8 8 8 Average Carried 6 | 1 6 7 6 Final Capacity 8 | 8 8 8 5 Final Carried 8 | 2 8 7 4 Class Distribution -------------------- 100% | Mutant Dominant Class ---------------- Mutant | -10/Materials Mutant | -10/Mines Mutant | -9/Materials Resources | -11 -10 -10 -9 ----------- Run | Yrd Mat Min Mat Matter Collected 561 | 258 153 28 122 Remotely . | . . . . Salvage Created 1245 | 58 429 249 509 Parts 72 | 2 26 11 33 Haulers Intercepted . | . . . . Recyclers Shooed 3 | 1 . . 2 Parts Field Recycled . | . . . . Retrieved Matter . | . . . . Parts Self-Destructed . | . . . . Prevented . | . . . . Parts Restored . | . . . . Kills | -11 -10 -10 -9 ------- Run | Yrd Mat Min Mat Combat Hostiles Destroyed 34 | . 11 5 18 Melee 3 | . . 3 . Guns 11 | . 6 . 5 Cannons 7 | . 5 2 . AOE 13 | . . . 13 Classes Destroyed 7 | 1 3 1 2 Worker 2 | . . 2 . Builder 1 | . . . 1 Recycler 7 | 1 1 1 4 Watcher 2 | . 1 . 1 Swarmer 13 | . 3 3 7 Grunt 19 | . 8 2 9 Sentry 2 | . . . 2 Best Kill Streak 10 | 1 3 4 10 Combat Bots Only 4 | . 3 2 4 Max Kills in Single Turn 3 | 1 1 1 3 Gunslinging . | . . . . Exploded 2 | . . . 2 Melee 1 | . . 1 . Uniques/NPCs Destroyed . | . . . . Combat | -11 -10 -10 -9 -------- Run | Yrd Mat Min Mat Hostile Shots Fired 184 | . 43 27 114 Missed 52 | . 9 4 39 Hits 132 | . 34 23 75 Projectile 132 | . 34 23 75 Critical Strikes 4 | . . . 4 Damage Taken 2332 | . 361 576 1395 Core 590 | . 67 119 404 Absorbed by Shields . | . . . . Core Remaining (%) 62 | 100 . 25 . Volleys Fired 109 | 7 40 32 30 Largest 2 | 2 2 1 2 Hottest 125 | 40 60 100 125 Shots Fired 148 | 14 61 33 40 Gun 71 | 14 42 . 15 Cannon 31 | . 19 10 2 Launcher 23 | . . . 23 Special 23 | . . 23 . Kinetic 56 | 14 42 . . Thermal 69 | . 19 33 17 Explosive 23 | . . . 23 Electromagnetic . | . . . . Robot Hit Streak 16 | 4 16 2 9 Robot Miss Streak 6 | 1 4 4 6 Penetration Max . | . . . . Secondary Targets . | . . . . Shots Hit Robots 83 | 8 33 11 31 Core Hits 74 | 3 16 4 51 Critical Kills . | . . . . Critical Parts Destroyed 2 | . 1 1 . Critical Strikes 2 | . 1 1 . Destroy 1 | . 1 . . Smash 1 | . . 1 . Melee Attacks 9 | . . 9 . Impact 9 | . . 9 . Slashing . | . . . . Piercing . | . . . . Sneak Attacks 2 | . . 2 . Combat Hostiles 1 | . . 1 . Follow-up Attacks . | . . . . Damage Inflicted 2888 | 66 381 404 2037 Guns 432 | 66 188 . 178 Cannons 280 | . 193 52 35 Explosions 1788 | . . . 1788 Melee 304 | . . 304 . Ramming 36 | . . . 36 Kinetic 254 | 66 188 . . Thermal 506 | . 193 100 213 Explosive 1737 | . . . 1737 Electromagnetic 51 | . . . 51 Impact 304 | . . 304 . Slashing . | . . . . Piercing . | . . . . Highest Corruption 9 | . 1 9 . Average Corruption 3 | . 1 5 . Corruption Purged . | . . . . Corruption Blocked . | . . . . Effects 9 | . 2 7 . Message Errors 4 | . . 4 . Matter Fused 2 | . 2 . . Heat Flow Errors 1 | . . 1 . Energy Discharges 1 | . . 1 . Misfires 1 | . . 1 . Overload Shots . | . . . . Overflow Damage 304 | . . 147 157 Projectiles . | . . . . Explosions 157 | . . . 157 Melee 147 | . . 147 . Knockbacks 2 | . . 2 . Impact 2 | . . 2 . Kinetic . | . . . . Secondary . | . . . . Self-Inflicted Damage 305 | . . . 305 Shots 8 | . . . 8 Rammed 18 | . . . 18 Targets Rammed 18 | . . . 18 Kicked . | . . . . Crushed . | . . . . Highest Temperature 240 | . 151 240 132 Average Temperature 58 | . 42 83 47 Received Heat Transfer 597 | . 162 6 429 Effects 1 | . . 1 . Interference 1 | . . 1 . Siege Activations . | . . . . Martial Activations . | . . . . Shielding Activations . | . . . . Robots Disrupted . | . . . . Combat Hostiles . | . . . . Robots Corrupted 2 | . . 2 . Combat Hostiles . | . . . . Parts Fried 9 | . . 9 . Impact Corruptions 4 | . . 4 . Robots Melted . | . . . . Combat Hostiles . | . . . . Parts Melted 1 | . 1 . . Heat Transferred 912 | . 407 211 294 Parts Sabotaged . | . . . . Parts Stolen . | . . . . Parts Stripped . | . . . . Power Chain Reactions . | . . . . Alert | -11 -10 -10 -9 ------- Run | Yrd Mat Min Mat Maximum Alert Level 2 | . . . 2 Low Security (%) 94 | 100 100 100 81 Level 1 4 | . . . 18 Level 2 . | . . . . Level 3 . | . . . . Level 4 . | . . . . Level 5 . | . . . . High Security . | . . . . Max Security . | . . . . Peak Influence 405 | 5 70 106 405 Initial 21 | . . 21 . Average 42 | . 19 34 93 Influence Increases 1192 | 5 312 168 707 Destroy 0b10 Robot/C 680 | . 220 100 360 Destroy 0b10 Robot/NC 60 | 5 10 15 30 Destroy Leader 154 | . 52 20 82 Successful Hack 15 | . 15 . . Disable Machine 75 | . 15 . 60 Destroy Structure 133 | . . 3 130 Lose Combat Pursuer 75 | . . 30 45 Influence Decreases 787 | 5 256 224 302 Entered New Map 35 | . . 35 . Time Decay 622 | 5 256 159 202 Lost Part 130 | . . 30 100 Squads Dispatched 8 | . 4 . 4 Investigation 3 | . 2 . 1 Extermination . | . . . . Reinforcement 5 | . 2 . 3 Assault . | . . . . Garrison . | . . . . Intercept . | . . . . Searches Triggered . | . . . . Construction Impeded . | . . . . Haulers Reinforced . | . . . . Active Scanning Responses . | . . . . Cargo Convoy Interrupts . | . . . . Stealth | -11 -10 -10 -9 --------- Run | Yrd Mat Min Mat Distress Signals 7 | . . . 7 Communications Jammed . | . . . . Distress Signals . | . . . . Times Spotted 53 | . 17 5 31 Peak Tracking Total 6 | . 3 3 6 Tactical Retreats 4 | . . 1 3 Traps | -11 -10 -10 -9 ------- Run | Yrd Mat Min Mat Traps Triggered 3 | . 3 . . Indirectly . | . . . . Trap Hack Attempts . | . . . . Triggered . | . . . . Disarmed . | . . . . Reprogrammed . | . . . . Reused . | . . . . Traps Extracted . | . . . . Installed . | . . . . Triggered . | . . . . Machines | -11 -10 -10 -9 ---------- Run | Yrd Mat Min Mat Machines Disabled 5 | . 1 . 4 Max in Single Turn 1 | . 1 . 1 Machines Repaired . | . . . . Machines Dismantled . | . . . . Machines Sabotaged . | . . . . Overloaded Fab Kills . | . . . . Hacking | -11 -10 -10 -9 --------- Run | Yrd Mat Min Mat Machines Accessed 3 | . 2 . 1 Terminals 2 | . 2 . . Fabricators . | . . . . Repair Stations 1 | . . . 1 Recycling Units . | . . . . Scanalyzers . | . . . . Garrison Access . | . . . . Total Hacks 10 | . 8 . 2 Successful 3 | . 3 . . Failed 7 | . 5 . 2 Catastrophic 1 | . . . 1 Database Lockouts . | . . . . Manual 1 | . 1 . . Terminals 8 | . 8 . . Fabricators . | . . . . Repair Stations 2 | . . . 2 Recycling Units . | . . . . Scanalyzers . | . . . . Garrison Access . | . . . . Terminal Hacks 3 | . 3 . . Prototype ID Bank 1 | . 1 . . Hauler Manifests 1 | . 1 . . Zone Layout 1 | . 1 . . Fabricator Hacks . | . . . . Repair Station Hacks . | . . . . Recycling Unit Hacks . | . . . . Scanalyzer . | . . . . Garrison Access Hacks . | . . . . Unauthorized Hacks . | . . . . Terminals . | . . . . Fabricators . | . . . . Repair Stations . | . . . . Recycling Units . | . . . . Scanalyzers . | . . . . Garrison Access . | . . . . Data Cores Recovered . | . . . . Used . | . . . . Hacking Detections 3 | . 2 . 1 Full Trace Events 2 | . 1 . 1 Feedback Events . | . . . . Feedback Blocked . | . . . . Robot Schematics Acquired . | . . . . Robots Built . | . . . . Authchips . | . . . . Time . | . . . . Total Robot Build Rating . | . . . . Part Schematics Acquired . | . . . . Parts Built . | . . . . Authchips . | . . . . Time . | . . . . Total Part Build Rating . | . . . . Part Studies Acquired . | . . . . Parts Repaired . | . . . . Time . | . . . . Parts Recycled . | . . . . Recycled Matter . | . . . . Retrieved Matter . | . . . . Retrieved Components . | . . . . Parts Scanalyzed . | . . . . Part Schematics Acquired . | . . . . Parts Damaged . | . . . . Bothacking | -11 -10 -10 -9 ------------ Run | Yrd Mat Min Mat Used RIF Installer . | . . . . Robots Hacked . | . . . . Non-combat . | . . . . Combat . | . . . . Robot Hacks Applied . | . . . . Relay Couplers Released . | . . . . Fabnet Peak Effective % . | . . . . Robots Rewired . | . . . . Allies Hacked . | . . . . Hacks Repelled . | . . . . Allies | -11 -10 -10 -9 -------- Run | Yrd Mat Min Mat Total Allies . | . . . . Largest Group . | . . . . Highest-Rated Group . | . . . . Highest-Rated Ally . | . . . . Total Orders . | . . . . Ally Attacks . | . . . . Total Damage . | . . . . Kills . | . . . . Allies Corrupted . | . . . . Allies Melted . | . . . . Intel | -11 -10 -10 -9 ------- Run | Yrd Mat Min Mat Active Infowar (turns) 633 | . . 86 547 Seismic 539 | . . . 539 ECM 94 | . . 86 8 Robot Analysis Total . | . . . . Derelict Logs Recovered . | . . . . Drone Launches . | . . . . Drone Recoveries . | . . . . Exploration | -11 -10 -10 -9 ------------- Run | Yrd Mat Min Mat Turns Passed 2063 | 97 912 484 570 Spaces Moved 1065 | 47 489 265 264 Core 25 | 10 1 11 3 Treads 698 | 37 485 13 163 Legs . | . . . . Wheels 291 | . . 241 50 Hover . | . . . . Flight 51 | . 3 . 48 Fastest Speed 50 | 50 117 80 95 Average Speed 143 | 136 160 101 157 Slowest Speed 435 | 160 300 350 435 Overloaded Moves . | . . . . Propulsion Burnouts . | . . . . Robots Hopped . | . . . . Potential Cave-ins 9 | . . 9 . Cave-ins Triggered 4 | . . 4 . Exploration Rate (%) 39 | 3 54 63 36 Regions Visited 3 Branch Regions 1 Pre-discovered Areas . | . . . . Known Exits Taken . | . . . . Unknown Exits Taken 3 | 1 1 1 . Scrap Searched 1 | . . 1 . Spaces Dug 19 | . . 19 . Terrain Destroyed 162 | . . 19 143 Melee . | . . . . Projectile 19 | . . 19 . AOE 143 | . . . 143 Terrain Rammed . | . . . . Walls Destroyed . | . . . . Machines Disabled . | . . . . Actions | -11 -10 -10 -9 --------- Run | Yrd Mat Min Mat Total 1392 | 68 567 385 372 Wait 103 | . 8 70 25 Move 1061 | 46 488 263 264 Hop . | . . . . Pick Up 33 | 7 14 2 10 Fast Attach 11 | 3 . 1 7 Attach 10 | 4 1 2 3 Detach . | . . . . Swap 15 | . 7 3 5 Drop 22 | 1 9 2 10 Fire 109 | 7 40 32 30 Melee 9 | . . 9 . Ram . | . . . . Kick . | . . . . Crush 18 | . . . 18 Escape Stasis 1 | . . 1 . Rewire . | . . . . Trap . | . . . . Miscellaneous . | . . . . Route ------- -11/Scrapyard -10/Materials (discovered 3 exits: *Mat x2 / [*Min]) -10/Mines -9/Materials (discovered 1 exit: [*Min]) History --------- Turn | Location | Event 4 | -11/Scrapyard | Discovered new exit (range 16) 98 | -11/Scrapyard | Entered Materials 127 | -10/Materials | Discovered new exit (range 12) 308 | -10/Materials | Build established: Mutant 342 | -10/Materials | Discovered new exit (range 10) 568 | -10/Materials | Discovered new exit (range 16) 1010 | -10/Materials | Entered Mines 1247 | -10/Mines | Crushed by falling debris 1247 | -10/Mines | Crushed by falling debris 1247 | -10/Mines | Core integrity fell below 50% 1283 | -10/Mines | Crushed by falling debris 1299 | -10/Mines | Crushed by falling debris 1404 | -10/Mines | Found a Scrap Suit stashed away for nefarious purposes 1414 | -10/Mines | Found Scrap Suit 1490 | -10/Mines | Discovered new exit (range 5) 1494 | -10/Mines | Entered Materials 1494 | -9/Materials | Evolved 2 slots: Power x1, Propulsion x1 2025 | -9/Materials | Core integrity fell below 50% 2031 | -9/Materials | Discovered new exit (range 13) 2060 | -9/Materials | Core integrity fell below 20% 2064 | -9/Materials | Destroyed self with Improved Grenade Launcher Last Messages --------------- 02043_ Lgt. Ion Engine destroyed. 02044_ Slammed into Y-45 Defender. 02051_ Critical hit (Burn: +37). 02051_ G-34 Mercenary destroyed. 02051_ Destroyed Imp. Heat Sink. 02051_ Imp. Grenade Launcher destroyed. 02051_ Destroyed Imp. Grenade Launcher. 02051_ Sml. Storage Unit destroyed. 02051_ Destroyed Sml. Storage Unit. 02051_ Adv. Treads destroyed. [Achievement: Overwhelming] 02051_ Destroyed Adv. Treads. 02053_ The unstable cave ceiling collapses. 02053_ Acquired 34 matter. 02056_ Adv. Treads destroyed. 02056_ K-01 Serf collects debris. 02057_ G-47 Trooper destroyed. 02059_ Adv. Treads destroyed. 02059_ Y-45 Defender destroyed. [Achievement: Resistances Are Futile] Map ----- +----------------------------------------------------+ | ???????????????? ### #??##????????# | | ???????????????? ### ###???#### | | ????????????????? ##### ## | | ????????????????? # # # | | ?????????????????? % ! # # | | ??????????????????# %= [ | | ??????????????????# % * [%* | | ??????????????????# [ == | | ??????????????????# % " # % % | | ???????????????????# ! # % | | ???????????????????# ##### " | | ????????????????????# #??????# "" | | ????????????????????# #??????## | | ????????????????????# #??????? | | ????????????????????# #??????? | | ????????????????????# #??????# | | ??????############### #??????# | | ??????# # #??????# | | ????### # #??????# | | ????""" # o""" #??????## | | ?????T # w""" #???????# " | | ?????"" # """ ###+##### T | | ??????# # ? ?? | | ??????# ?????? | | ??????# m w ?????? | | ?????????######@ ##########??????? | | ?????????# #???????????????? | | ?????????# [] ##???????????????? | | ?????????# #????????????????? | | ?????????# #????????????????? | | ?????????# #????????????????? | | ?????????## ## ??????????????? | | ??????????# ### """ "#?????????????? | | ??????????# #?# """ T#?????????????? | | ??????????# #?# """ "#?????????????? | | ??????????# #?# #?????????????? | | ?????????? ?# """ #?????????????? | | ????????? ?# ""?? #?????????????? | | ????????# ?# "???? #?????????????? | | ????????# < ?# ????? #?????????????? | | ????????# ??##??????#?????????????? | | ????????#"" "????????????????????????? | | ??????????"!!!"????????????????????????? | | ???????????"""?????????????????????????? | | ???????????????????????????????????????? | | ???????????????????????????????????????? | | ???????????????????????????????????????? | | ???????????????????????????????????????? | | ???????????????????????????????????????? | | ???????????????????????????????????????? | +----------------------------------------------------+ Best States ------------- Heat Dissipation 28 Energy Generation 17 Energy Capacity 415 Matter Stores 300 Matter Capacity 300 Sight Range 16 Terrain Scan Density 10 ECM Strength 1 Evasion (%) 50 Recoil Reduction 3 Item Schematics ----------------- None Robot Schematics ------------------ None Fabricated ------------ Nothing Repaired ---------- Nothing Studied --------- None Alien Tech Used ----------------- None Achievements -------------- Overwhelming Resistances Are Futile Challenges ------------ None Game ------ Seed PoweredMatterThruster Manual? 0 Play Time 00:24:15 Cumulative 8.0 hours Start 2026.08.01 @ 20:22:02 End 2026.08.01 @ 20:46:38 Sessions 1 Manual Loads 0 Difficulty Rogue Special Mode None Game No. 18 Rogue 18 Adventurer 0 Explorer 0 Win Type - Total 0 Types 0/0/0/0/0/0/0/0/0/0 Lore% 10 Gallery% 10 Achievement% 10 Wizard Run 0 Options --------- Layout 1 ASCII 0 Keyboard 0 Movement Mouse Keybinds 0 Fullscreen 2 Font 24/Smallcaps Map View 50x35 Zoom Use 0% Tactical HUD 1 Map Filters NONE Filters NONE Steam 1 RUN: dbdf3cdd-1b6a-4147-a42b-631d8964c396